fUSD/lending_fUSD_20240530
["ID","MTS","AMOUNT","RATE_DAILY","PERIOD"]
[328257202,1717111833619,-150.0,0.00026701,2]
[328257203,1717111833628,-1171.19,0.00026701,2]
[328257204,1717111833826,-3164.0,0.00026701,2]
[328257205,1717111833836,-289.0,0.00026701,2]
[328257206,1717111833846,-1467.0,0.00026701,2]
[328257207,1717111833856,-37963.0,0.00026701,2]
[328257208,1717111833865,-976.0,0.00026701,2]
[328257209,1717111833875,-5488.277,0.00026701,2]
[328257210,1717111833886,-150.0,0.00027,2]
[328257211,1717111833894,-225.7,0.0002711,5]
[328257212,1717111833903,-1320.97,0.00027115,2]
[328257213,1717111833913,-1358.42743277,0.00027334,2]
[328257214,1717111833922,-1000.0,0.0002734,2]
[328257215,1717111833932,-805.18519156,0.0002739,2]
[328257216,1717111833941,-168.5,0.00027397,2]
[328257217,1717111833951,-1542.78,0.00027397,10]
[328257218,1717111833960,-1285.65,0.00027397,10]
[328257219,1717111833969,-1071.38,0.00027397,10]
[328257220,1717111833978,-892.81,0.00027397,10]
[328257221,1717111833987,-1038.57444907,0.000275,2]
[328257222,1717111833996,-299.0,0.00027671,5]
[328257223,1717111834005,-1358.42743277,0.00028067,2]
[328257224,1717111834015,-150.0,0.00028459,2]
[328257225,1717111834024,-225.7,0.0002854,7]
[328257226,1717111834033,-150.0,0.00028661,2]
[328257227,1717111834042,-201.76,0.00028694,2]
[328257228,1717111834051,-1358.42743277,0.00028801,2]
[328257229,1717111834061,-150.0,0.00028908,2]
[328257230,1717111834070,-2051.96615826,0.00029,2]
[328257231,1717111834079,-1000.0,0.00029029,2]
[328257232,1717111834089,-1915.0,0.00029136,2]
[328257233,1717111834099,-1080.872953,0.00029198,2]
[328257234,1717111834108,-196.233621,0.00029198,2]
[328257235,1717111834117,-2760.766018,0.00029198,2]
[328257236,1717111834127,-183.896947,0.00029198,2]
[328257237,1717111834136,-172.660676,0.00029198,2]
[328257238,1717111834146,-184.415998,0.00029198,2]
[328257239,1717111834156,-378.129134,0.00029198,2]
[328257240,1717111834165,-226.23265054,0.000295,3]
[328257241,1717111834174,-1000.0,0.000295,2]
[328257242,1717111834184,-1358.42743277,0.00029534,2]
[328257243,1717111834194,-1080.872953,0.00029563,2]
[328257244,1717111834203,-2760.766018,0.00029563,2]
[328257245,1717111834213,-378.129134,0.00029563,2]
[328257246,1717111834222,-237.716639,0.00029641,2]
[328257247,1717111834231,-172.660676,0.00029685,2]
[328257248,1717111834241,-184.415998,0.00029685,2]
[328257249,1717111834250,-1646.0,0.00029701,2]
[328257250,1717111834259,-188.0,0.00029701,2]
[328257251,1717111834268,-1265.0,0.00029701,2]
[328257252,1717111834277,-614.0,0.00029701,2]
[328257253,1717111834286,-1395.638,0.00029701,2]
[328257254,1717111834295,-214.0,0.00029701,2]
[328257255,1717111834305,-252.139,0.00029701,2]
[328257256,1717111834314,-7548.843,0.00029701,2]
[328257257,1717111834323,-973.0,0.00029701,2]
[328257258,1717111834332,-154.36709069,0.00029741,2]
[328257259,1717111834342,-1596.17992517,0.00029828,2]
[328257260,1717111834351,-154.36709069,0.000299,2]
[328257261,1717111834360,-165.0065,0.000299,2]
[328257262,1717111834369,-154.36709069,0.00029915,2]
[328257263,1717111834380,-171.67,0.0002992,2]
[328257264,1717111834389,-1080.872953,0.00029928,2]
[328257265,1717111834398,-2760.766018,0.00029928,2]
[328257266,1717111834407,-378.129134,0.00029928,2]
[328257267,1717111834417,-225.7,0.0002997,7]
[328257268,1717111834426,-200.97,0.0002999,2]
[328257269,1717111834436,-5698.34718129,0.0003,2]
[328257270,1717111834445,-1000.0,0.0003,2]
[328257271,1717111834454,-14018.64151455,0.0003,4]
[328257272,1717111834464,-14018.64151455,0.0003,4]
[328257273,1717111834473,-14018.64151455,0.0003,4]
[328257274,1717111834483,-14018.64151455,0.0003,4]
[328257275,1717111834492,-155.43161688,0.00030021,7]
[328257276,1717111834502,-158.0,0.00030059,5]
[328257277,1717111834511,-151.825995,0.000301,2]
[328257278,1717111834520,-155.08870371,0.00030102,7]
[328257279,1717111834530,-311.69812443,0.0003015,7]
[328257280,1717111834539,-172.660676,0.00030171,2]
[328257281,1717111834548,-184.415998,0.00030171,2]
[328257282,1717111834558,-150.0,0.00030188,2]
[328257283,1717111834568,-154.36709069,0.00030191,7]
[328257284,1717111834577,-150.0,0.00030197,2]
[328257285,1717111834587,-1358.42743277,0.00030267,10]
[328257286,1717111834596,-413.23,0.00030274,2]
[328257287,1717111834605,-1080.872953,0.00030293,2]
[328257288,1717111834615,-2760.766018,0.00030293,2]
[328257289,1717111834624,-378.129134,0.00030293,2]
[328257290,1717111834634,-1596.17992517,0.0003031,2]
[328257291,1717111834643,-425.99301885,0.00030406,7]
[328257292,1717111834653,-152.26216796,0.00030407,7]
[328257293,1717111834663,-155.05514932,0.0003041,7]
[328257294,1717111834672,-311.69812443,0.00030411,7]
[328257295,1717111834681,-150.0,0.0003044,2]
[328257296,1717111834691,-155.0,0.00030448,7]
[328257297,1717111834700,-150.0,0.00030461,7]
[328257298,1717111834709,-157.80032866,0.00030511,7]
[328257299,1717111834719,-213.91072253,0.00030543,7]
[328257300,1717111834728,-311.69812443,0.00030645,7]
[328257301,1717111834738,-150.0,0.00030646,2]
[328257302,1717111834750,-1080.872953,0.00030658,2]
[328257303,1717111834760,-2760.766018,0.00030658,2]
[328257304,1717111834770,-378.129134,0.00030658,2]
[328257305,1717111834779,-183.896947,0.00030658,2]
[328257306,1717111834788,-172.660676,0.00030658,2]
[328257307,1717111834798,-184.415998,0.00030658,2]
[328257308,1717111834808,-425.99301885,0.00030751,7]
[328257309,1717111834817,-1596.17992517,0.00030791,2]
[328257310,1717111834826,-166.66666666,0.00030794,7]
[328257311,1717111834836,-311.69812443,0.00030814,7]
[328257312,1717111834845,-152.26216796,0.00030866,7]
[328257313,1717111834855,-155.43161688,0.00030889,7]
[328257314,1717111834864,-154.18181684,0.00030939,7]
[328257315,1717111834873,-201.76,0.00030958,2]
[328257316,1717111834884,-1150.0,0.0003097,2]
[328257317,1717111834894,-500.0,0.00031,2]
[328257318,1717111834903,-500.0,0.00031,2]
[328257319,1717111834913,-500.0,0.00031,2]
[328257320,1717111834923,-500.0,0.00031,2]
[328257321,1717111834933,-500.0,0.00031,2]
[328257322,1717111834943,-346.0004658,0.00031,4]
[328257323,1717111834953,-1358.42743277,0.00031,10]
[328257324,1717111834963,-213.91072253,0.00031024,7]
[328257325,1717111834973,-163.20175184,0.00031123,7]
[328257326,1717111834983,-425.99301885,0.00031168,7]
[328257327,1717111834992,-155.08870371,0.00031187,7]
[328257328,1717111835002,-156.49288304,0.00031199,2]
[328257329,1717111835012,-356.71107853,0.000312,2]
[328257330,1717111835021,-150.0,0.00031221,2]
[328257331,1717111835031,-2006.19259401,0.0003123,2]
[328257332,1717111835040,-154.18181684,0.00031251,7]
[328257333,1717111835053,-1596.17992517,0.00031273,2]
[328257334,1717111835063,-150.0,0.00031356,2]
[328257335,1717111835073,-155.08870371,0.00031374,7]
[328257336,1717111835083,-150.0,0.00031417,2]
[328257337,1717111835094,-155.05514932,0.00031467,7]
[328257338,1717111835104,-150.0,0.00031487,2]
[328257339,1717111835114,-150.0,0.00031532,2]
[328257340,1717111835124,-311.69812443,0.00031537,7]
[328257341,1717111835136,-150.0,0.00031543,2]
[328257342,1717111835147,-171.67,0.00031566,2]
[328257343,1717111835157,-425.99301885,0.00031568,7]
[328257344,1717111835167,-150.0,0.00031603,2]
[328257345,1717111835176,-150.0,0.00031619,2]
[328257346,1717111835186,-155.43161688,0.00031638,7]
[328257347,1717111835196,-150.0,0.00031643,2]
[328257348,1717111835206,-1358.42743277,0.00031734,10]
[328257349,1717111835215,-1596.17992517,0.00031755,2]
[328257350,1717111835225,-150.0,0.0003177,2]
[328257351,1717111835235,-311.69812443,0.00031846,7]
[328257352,1717111835244,-862.0,0.000319,2]
[328257353,1717111835254,-425.99301885,0.00031902,7]
[328257354,1717111835264,-150.0,0.00031958,2]
[328257355,1717111835273,-155.16281101,0.00031966,7]
[328257356,1717111835283,-1000.0,0.0003197,2]
[328257357,1717111835292,-154.36709069,0.00031988,7]
[328257358,1717111835301,-155.0,0.00032,4]
[328257359,1717111835311,-500.0,0.00032,2]
[328257360,1717111835320,-900.0,0.00032,33]
[328257361,1717111835330,-200.83831538,0.00032,30]
[328257362,1717111835340,-311.69812443,0.00032034,7]
[328257363,1717111835349,-10000.0,0.00032047,2]
[328257364,1717111835359,-311.69812443,0.00032048,7]
[328257365,1717111835369,-4611.7,0.00032071,2]
[328257366,1717111835380,-213.91072253,0.00032079,7]
[328257367,1717111835391,-5000.0,0.00032093,2]
[328257368,1717111835418,-1510.63,0.00032098,2]
[328257369,1717111835433,-10000.0,0.00032118,2]
[328257370,1717111835443,-5000.0,0.00032137,2]
[328257371,1717111835453,-2500.0,0.00032143,2]
[328257372,1717111835463,-4130.5,0.00032145,2]
[328257373,1717111835474,-5000.0,0.00032174,2]
[328257374,1717111835483,-224.0,0.000322,2]
[328257375,1717111835494,-354.0,0.000322,2]
[328257376,1717111835503,-311.69812443,0.00032203,7]
[328257377,1717111835513,-2501.59,0.00032216,2]
[328257378,1717111835523,-927.45531659,0.00032217,2]
[328257379,1717111835532,-150.0,0.00032222,2]
[328257380,1717111835541,-1596.17992517,0.00032237,2]
[328257381,1717111835551,-166.66666666,0.00032243,7]
[328257382,1717111835561,-152.26216796,0.00032297,7]
[328257383,1717111835570,-151.0,0.00032328,2]
[328257384,1717111835580,-5000.0,0.00032339,2]
[328257385,1717111835590,-5000.0,0.00032361,2]
[328257386,1717111835599,-320.11957993,0.00032367,2]
[328257387,1717111835609,-1000.0,0.0003237,2]
[328257388,1717111835619,-5000.0,0.00032464,2]
[328257389,1717111835628,-1358.42743277,0.00032467,10]
[328257390,1717111835638,-150.0,0.00032468,2]
[328257391,1717111835647,-160.43272672,0.00032479,7]
[328257392,1717111835656,-2500.0,0.00032491,2]
[328257393,1717111835666,-1001.25267329,0.000325,3]
[328257394,1717111835676,-213.91072253,0.000325,7]
[328257395,1717111835686,-1000.0,0.000325,2]
[328257396,1717111835695,-165.24587979,0.00032512,7]
[328257397,1717111835705,-157.80032866,0.00032518,7]
[328257398,1717111835714,-150.0,0.00032525,2]
[328257399,1717111835724,-176.15685439,0.00032538,3]
[328257400,1717111835733,-2500.64,0.00032563,2]
[328257401,1717111835745,-2505.56,0.00032575,2]
[328257402,1717111835755,-150.0,0.00032583,2]
[328257403,1717111835765,-5000.0,0.00032612,2]
[328257404,1717111835774,-500.0,0.00032613,2]
[328257405,1717111835784,-200.0,0.00032613,2]
[328257406,1717111835794,-150.0,0.00032615,2]
[328257407,1717111835803,-2505.56,0.00032617,2]
[328257408,1717111835813,-2500.0,0.00032632,2]
[328257409,1717111835823,-380.70037141,0.00032633,2]
[328257410,1717111835832,-150.0,0.00032641,2]
[328257411,1717111835841,-213.91072253,0.00032643,7]
[328257412,1717111835850,-1000.0,0.00032657,2]
[328257413,1717111835860,-150.0,0.00032666,2]
[328257414,1717111835869,-5000.0,0.00032685,2]
[328257415,1717111835880,-1265.0,0.00032701,2]
[328257416,1717111835890,-614.0,0.00032701,2]
[328257417,1717111835900,-150.0,0.00032704,2]
[328257418,1717111835910,-5000.0,0.00032712,2]
[328257419,1717111835920,-6062.98466782,0.00032718,2]
[328257420,1717111835930,-1596.17992517,0.00032718,2]
[328257421,1717111835940,-425.99301885,0.00032721,7]
[328257422,1717111835950,-865.35,0.00032721,2]
[328257423,1717111835960,-2500.0,0.00032733,2]
[328257424,1717111835970,-800.0,0.0003274,2]
[328257425,1717111835980,-152.26216796,0.00032754,7]
[328257426,1717111835990,-2649.3554,0.00032765,2]
[328257427,1717111836000,-150.0,0.00032768,2]
[328257428,1717111836009,-166.86055701,0.00032775,2]
[328257429,1717111836019,-261.95008737,0.00032776,4]
[328257430,1717111836028,-164.56423458,0.00032776,2]
[328257431,1717111836038,-320.11957992,0.00032784,2]
[328257432,1717111836048,-200.97,0.0003279,2]
[328257433,1717111836058,-220.13563956,0.00032791,5]
[328257434,1717111836071,-220.13563953,0.00032791,5]
[328257435,1717111836080,-220.13563953,0.00032791,5]
[328257436,1717111836090,-1500.0,0.00032791,2]
[328257437,1717111836099,-157.053108,0.00032798,44]
[328257438,1717111836110,-1000.0,0.000328,2]
[328257439,1717111836120,-1000.0,0.000328,2]
[328257440,1717111836131,-1000.0,0.000328,2]
[328257441,1717111836140,-1000.0,0.000328,2]
[328257442,1717111836150,-1000.0,0.000328,2]
[328257443,1717111836161,-1000.0,0.000328,2]
[328257444,1717111836171,-1000.0,0.000328,2]
[328257445,1717111836180,-1000.0,0.000328,2]
[328257446,1717111836190,-1000.0,0.000328,2]
[328257447,1717111836199,-1000.0,0.000328,2]
[328257448,1717111836209,-1007.22,0.000328,2]
[328257449,1717111836219,-302.72,0.000328,2]
[328257450,1717111836230,-150.0,0.000328,7]
[328257451,1717111836239,-157.053106,0.00032808,46]
[328257452,1717111836249,-5000.0,0.00032808,2]
[328257453,1717111836259,-261.95008727,0.00032815,4]
[328257454,1717111836269,-157.053108,0.00032818,48]
[328257455,1717111836278,-157.053108,0.00032828,44]
[328257456,1717111836288,-155.08870371,0.00032836,7]
[328257457,1717111836298,-157.053108,0.00032838,46]
[328257458,1717111836308,-157.053108,0.00032848,48]
[328257459,1717111836318,-261.95008727,0.00032853,4]
[328257460,1717111836328,-11977.1824686,0.00032865,2]
[328257461,1717111836337,-2500.0,0.00032865,2]
[328257462,1717111836347,-325.5785249,0.00032865,2]
[328257463,1717111836356,-53434.83665917,0.00032865,2]
[328257464,1717111836559,-2418.1409,0.00032865,2]
[328257465,1717111836571,-1578.18428588,0.00032865,2]
[328257466,1717111836617,-5439.96,0.00032865,2]
[328257467,1717111836630,-4214.98163259,0.00032865,2]
[328257468,1717111836641,-5999.8097016,0.00032865,2]
[328257471,1717111838780,-739.9595465,0.00023678,2]
[328257472,1717111838792,-411.70999974,0.00023678,2]
[328257473,1717111838804,-8848.33045376,0.00023678,2]
[328257474,1717111838814,-261.0,0.00026701,2]
[328257475,1717111838823,-2334.01568487,0.00026701,2]
[328257481,1717111842993,-10000.0,0.00023678,2]
[328257482,1717111843003,-2808.98431513,0.00026701,2]
[328257483,1717111843013,-150.0,0.00029701,2]
[328257484,1717111843022,-5143.0,0.00029701,2]
[328257485,1717111843032,-150.0,0.00032701,2]
[328257486,1717111843042,-25795.60389076,0.00032865,2]
[328257487,1717111843051,-200.97,0.00032866,2]
[328257488,1717111843061,-4276.8778357,0.00032869,2]
[328257489,1717111843073,-1724.5415356,0.00032869,2]
[328257490,1717111843083,-1000.0,0.0003287,2]
[328257491,1717111843094,-38768.4408272,0.00032871,2]
[328257492,1717111843103,-582.6114172,0.00032873,2]
[328257493,1717111843113,-410.67512791,0.00032874,2]
[328257494,1717111843122,-636.88647009,0.00032874,2]
[328257495,1717111843133,-428.81754475,0.00032875,4]
[328257496,1717111843143,-462.91757203,0.00032875,4]
[328257497,1717111843154,-13717.15259875,0.00032875,5]
[328257498,1717111843165,-801.55003099,0.00032875,2]
[328257499,1717111843175,-153.09589596,0.00032875,7]
[328257500,1717111843184,-42869.72353075,0.00032876,9]
[328257501,1717111843194,-529.22894241,0.00032876,7]
[328257502,1717111843203,-512.80667256,0.00032876,7]
[328257503,1717111843212,-504.00773538,0.00032876,7]
[328257504,1717111843222,-525.51884123,0.00032876,7]
[328257505,1717111843231,-513.5478695,0.00032876,7]
[328257506,1717111843241,-511.29579425,0.00032876,7]
[328257507,1717111843251,-510.3709986,0.00032876,7]
[328257508,1717111843261,-504.28793238,0.00032876,7]
[328257509,1717111843270,-630.85020722,0.00032876,7]
[328257510,1717111843280,-596.50838417,0.00032876,7]
[328257511,1717111843290,-530.05299763,0.00032876,7]
[328257512,1717111843299,-500.0,0.00032876,7]
[328257513,1717111843309,-500.0,0.00032876,7]
[328257514,1717111843319,-503.98286323,0.00032876,7]
[328257515,1717111843328,-512.8160387,0.00032876,7]
[328257516,1717111843338,-505.30558933,0.00032876,7]
[328257517,1717111843347,-500.0,0.00032876,7]
[328257518,1717111843357,-393.65393492,0.00032876,7]
[328257519,1717111843366,-509.19051424,0.00032876,7]
[328257520,1717111843376,-510.33108431,0.00032876,7]
[328257521,1717111843386,-513.58436963,0.00032876,7]
[328257522,1717111843395,-506.33550735,0.00032876,7]
[328257523,1717111843404,-508.67126683,0.00032876,7]
[328257524,1717111843414,-509.92946616,0.00032876,7]
[328257525,1717111843423,-500.0,0.00032876,7]
[328257526,1717111843433,-164.61062386,0.00032876,2]
[328257527,1717111843442,-185.60238994,0.00032876,7]
[328257528,1717111843452,-528.1509911,0.00032876,7]
[328257529,1717111843462,-509.95820615,0.00032876,7]
[328257530,1717111843474,-499.26175053,0.00032876,7]
[328257531,1717111843483,-200.0,0.00032876,7]
[328257532,1717111843493,-500.0,0.00032876,7]
[328257533,1717111843502,-510.66686522,0.00032876,7]
[328257534,1717111843511,-517.73124297,0.00032876,7]
[328257535,1717111843520,-500.0,0.00032876,7]
[328257536,1717111843529,-517.99609228,0.00032876,7]
[328257537,1717111843538,-500.0,0.00032876,7]
[328257538,1717111843547,-318.42546021,0.00032876,7]
[328257539,1717111843556,-534.43561266,0.00032876,7]
[328257541,1717111843565,-400.16313821,0.00032876,7]
[328257542,1717111843575,-500.0,0.00032876,7]
[328257543,1717111843584,-500.0,0.00032876,7]
[328257544,1717111843593,-500.0,0.00032876,7]
[328257545,1717111843602,-457.31187962,0.00032876,7]
[328257546,1717111843611,-526.67691103,0.00032876,7]
[328257547,1717111843620,-500.0,0.00032876,7]
[328257548,1717111843630,-538.56159906,0.00032876,7]
[328257549,1717111843639,-500.0,0.00032876,7]
[328257550,1717111843648,-500.0,0.00032876,7]
[328257551,1717111843657,-500.0,0.00032876,7]
[328257552,1717111843666,-519.4118026,0.00032876,7]
[328257553,1717111843675,-505.7536589,0.00032876,7]
[328257554,1717111843685,-186.75438156,0.00032876,7]
[328257555,1717111843695,-500.0,0.00032876,7]
[328257556,1717111843704,-500.0,0.00032876,7]
[328257557,1717111843714,-510.56812933,0.00032876,7]
[328257558,1717111843723,-511.32181628,0.00032876,7]
[328257559,1717111843732,-500.0,0.00032876,7]
[328257560,1717111843741,-511.88856712,0.00032876,7]
[328257561,1717111843751,-500.0,0.00032876,7]
[328257562,1717111843761,-500.0,0.00032876,7]
[328257563,1717111843770,-500.0,0.00032876,7]
[328257564,1717111843779,-500.0,0.00032876,7]
[328257565,1717111843789,-478.7676188,0.00032876,7]
[328257566,1717111843798,-500.0,0.00032876,7]
[328257567,1717111843807,-500.0,0.00032876,7]
[328257568,1717111843816,-204.36692695,0.00032876,7]
[328257569,1717111843825,-527.27815493,0.00032876,7]
[328257570,1717111843835,-500.0,0.00032876,7]
[328257571,1717111843844,-500.0,0.00032876,7]
[328257572,1717111843852,-500.0,0.00032876,7]
[328257573,1717111843862,-523.14792156,0.00032876,7]
[328257574,1717111843871,-500.0,0.00032876,7]
[328257575,1717111843880,-500.0,0.00032876,7]
[328257576,1717111843889,-500.0,0.00032876,7]
[328257577,1717111843898,-500.0,0.00032876,7]
[328257578,1717111843907,-500.0,0.00032876,7]
[328257579,1717111843917,-500.0,0.00032876,7]
[328257580,1717111843926,-500.0,0.00032876,7]
[328257581,1717111843935,-500.0,0.00032876,7]
[328257582,1717111843944,-500.0,0.00032876,7]
[328257583,1717111843953,-500.0,0.00032876,7]
[328257584,1717111843962,-402.36048417,0.00032876,7]
[328257585,1717111843971,-500.0,0.00032876,7]
[328257586,1717111843980,-500.0,0.00032876,7]
[328257587,1717111843991,-500.0,0.00032876,7]
[328257588,1717111844000,-500.0,0.00032876,7]
[328257589,1717111844009,-500.0,0.00032876,7]
[328257590,1717111844019,-533.55133156,0.00032876,7]
[328257591,1717111844028,-500.0,0.00032876,7]
[328257592,1717111844038,-500.0,0.00032876,7]
[328257593,1717111844048,-500.0,0.00032876,7]
[328257594,1717111844058,-500.0,0.00032876,7]
[328257595,1717111844067,-500.0,0.00032876,7]
[328257596,1717111844081,-500.0,0.00032876,7]
[328257597,1717111844091,-500.0,0.00032876,7]
[328257598,1717111844101,-513.27250921,0.00032876,7]
[328257599,1717111844110,-500.0,0.00032876,7]
[328257600,1717111844121,-512.84060218,0.00032876,7]
[328257601,1717111844131,-531.47824925,0.00032876,7]
[328257602,1717111844140,-500.0,0.00032876,7]
[328257603,1717111844150,-500.0,0.00032876,7]
[328257604,1717111844160,-500.0,0.00032876,7]
[328257605,1717111844171,-647.87,0.00032876,7]
[328257606,1717111844180,-600.95447767,0.00032876,7]
[328257607,1717111844190,-500.0,0.00032876,7]
[328257608,1717111844199,-500.0,0.00032876,7]
[328257609,1717111844208,-500.0,0.00032876,7]
[328257610,1717111844217,-500.0,0.00032876,7]
[328257611,1717111844227,-500.0,0.00032876,7]
[328257612,1717111844237,-500.0,0.00032876,7]
[328257613,1717111844246,-500.0,0.00032876,7]
[328257614,1717111844255,-500.0,0.00032876,7]
[328257615,1717111844264,-500.0,0.00032876,7]
[328257616,1717111844274,-500.0,0.00032876,7]
[328257617,1717111844283,-500.0,0.00032876,7]
[328257618,1717111844292,-500.0,0.00032876,7]
[328257619,1717111844301,-500.0,0.00032876,7]
[328257620,1717111844311,-500.0,0.00032876,7]
[328257621,1717111844320,-507.89173078,0.00032876,7]
[328257622,1717111844330,-1014.0965395,0.00032876,7]
[328257623,1717111844338,-500.0,0.00032876,7]
[328257624,1717111844347,-150.0,0.00032876,7]
[328257625,1717111844356,-500.0,0.00032876,7]
[328257626,1717111844365,-484.18171152,0.00032876,7]
[328257627,1717111844374,-500.0,0.00032876,7]
[328257628,1717111844385,-500.0,0.00032876,7]
[328257629,1717111844394,-500.0,0.00032876,7]
[328257630,1717111844407,-571.78510248,0.00032876,7]
[328257631,1717111844416,-500.0,0.00032876,7]
[328257632,1717111844425,-515.76636632,0.00032876,7]
[328257633,1717111844434,-500.0,0.00032876,7]
[328257634,1717111844443,-602.13016709,0.00032876,7]
[328257635,1717111844452,-5000.0,0.00032876,7]
[328257636,1717111844461,-500.0,0.00032876,7]
[328257637,1717111844470,-500.0,0.00032876,7]
[328257638,1717111844479,-500.0,0.00032876,7]
[328257639,1717111844488,-500.0,0.00032876,7]
[328257640,1717111844497,-500.0,0.00032876,7]
[328257641,1717111844507,-500.0,0.00032876,7]
[328257642,1717111844516,-500.0,0.00032876,7]
[328257643,1717111844525,-511.50673941,0.00032876,7]
[328257644,1717111844534,-500.0,0.00032876,7]
[328257645,1717111844543,-500.0,0.00032876,7]
[328257646,1717111844552,-545.95606264,0.00032876,7]
[328257647,1717111844561,-500.0,0.00032876,7]
[328257648,1717111844570,-551.74667255,0.00032876,7]
[328257649,1717111844580,-500.0,0.00032876,7]
[328257650,1717111844589,-592.07060524,0.00032876,7]
[328257651,1717111844599,-500.0,0.00032876,7]
[328257652,1717111844608,-500.0,0.00032876,7]
[328257653,1717111844617,-505.09767511,0.00032876,7]
[328257654,1717111844627,-547.89279144,0.00032876,7]
[328257655,1717111844636,-500.0,0.00032876,7]
[328257656,1717111844645,-500.0,0.00032876,7]
[328257657,1717111844654,-500.0,0.00032876,7]
[328257658,1717111844663,-509.70019097,0.00032876,7]
[328257659,1717111844672,-500.0,0.00032876,7]
[328257660,1717111844682,-500.0,0.00032876,7]
[328257661,1717111844691,-500.0,0.00032876,7]
[328257662,1717111844700,-500.0,0.00032876,7]
[328257663,1717111844709,-500.0,0.00032876,7]
[328257664,1717111844718,-500.0,0.00032876,7]
[328257665,1717111844727,-500.0,0.00032876,7]
[328257666,1717111844736,-500.0,0.00032876,7]
[328257667,1717111844745,-500.0,0.00032876,7]
[328257668,1717111844755,-500.0,0.00032876,7]
[328257669,1717111844764,-500.0,0.00032876,7]
[328257670,1717111844773,-500.0,0.00032876,7]
[328257671,1717111844782,-535.15835318,0.00032876,7]
[328257672,1717111844801,-500.0,0.00032876,7]
[328257673,1717111844811,-500.0,0.00032876,7]
[328257674,1717111844821,-365.66636096,0.00032876,7]
[328257675,1717111844830,-510.36330182,0.00032876,7]
[328257676,1717111844839,-500.0,0.00032876,7]
[328257677,1717111844849,-500.0,0.00032876,7]
[328257678,1717111844858,-500.0,0.00032876,7]
[328257679,1717111844868,-500.0,0.00032876,7]
[328257680,1717111844877,-500.0,0.00032876,7]
[328257681,1717111844888,-500.0,0.00032876,7]
[328257682,1717111844897,-500.0,0.00032876,7]
[328257683,1717111844907,-500.0,0.00032876,7]
[328257684,1717111844916,-500.0,0.00032876,7]
[328257685,1717111844925,-500.0,0.00032876,7]
[328257686,1717111844935,-514.5999938,0.00032876,7]
[328257687,1717111844944,-500.0,0.00032876,7]
[328257688,1717111844954,-500.0,0.00032876,7]
[328257689,1717111844963,-500.0,0.00032876,7]
[328257690,1717111844973,-500.0,0.00032876,7]
[328257691,1717111844983,-530.07656437,0.00032876,7]
[328257692,1717111844992,-500.0,0.00032876,7]
[328257693,1717111845001,-500.0,0.00032876,7]
[328257694,1717111845011,-609.8323139,0.00032876,7]
[328257695,1717111845020,-500.0,0.00032876,2]
[328257696,1717111845030,-509.8570723,0.00032876,7]
[328257697,1717111845039,-500.0,0.00032876,7]
[328257698,1717111845048,-500.0,0.00032876,7]
[328257699,1717111845057,-518.65034,0.00032876,7]
[328257700,1717111845067,-500.0,0.00032876,7]
[328257701,1717111845081,-500.0,0.00032876,7]
[328257702,1717111845091,-508.55962254,0.00032876,7]
[328257703,1717111845101,-500.0,0.00032876,7]
[328257704,1717111845110,-500.0,0.00032876,7]
[328257705,1717111845122,-500.0,0.00032876,7]
[328257706,1717111845132,-500.0,0.00032876,7]
[328257707,1717111845141,-500.0,0.00032876,7]
[328257708,1717111845152,-500.0,0.00032876,7]
[328257709,1717111845161,-500.0,0.00032876,7]